bitfinex/quotes_BTCUSD_20250123
["timestamp","ask_amount","ask_price","bid_price","bid_amount"]
[1737633979714,0.0001425,101950.0,101940.0,0.40832078]
[1737633982286,0.0001425,101950.0,101940.0,0.42781582]
[1737633983684,5e-07,101950.0,101940.0,0.42781582]
[1737633983901,0.0001424,101980.0,101960.0,0.043]
[1737633984107,0.0001424,101980.0,101970.0,0.61005027]
[1737633984482,0.0001424,101980.0,101970.0,0.49923278]
[1737633985127,0.0001424,101980.0,101970.0,0.61010065]
[1737633986050,0.0001424,101980.0,101970.0,0.49928316]
[1737633986787,0.0001424,101980.0,101970.0,0.61010065]
[1737633986989,0.0001424,101980.0,101970.0,0.62146065]
[1737633987420,0.0001424,101980.0,101970.0,0.68087495]
[1737633989063,0.0001424,101980.0,101970.0,0.68083495]
[1737633989328,0.0001424,101980.0,101970.0,0.70083495]
[1737633990064,0.0001424,101980.0,101970.0,0.78213495]
[1737633990756,4e-07,101980.0,101970.0,1.10823495]
[1737633991961,4e-07,101980.0,101970.0,1.15333495]
[1737633992526,0.00029925,102010.0,102000.0,0.291039]
[1737633992748,0.00029925,102010.0,102000.0,0.61002127]
[1737633993423,0.00029925,102010.0,102000.0,0.49920378]
[1737633993801,0.00029925,102010.0,102000.0,0.6549357]
[1737633994015,0.00029925,102010.0,102000.0,0.68022748]
[1737633994789,2.5e-07,102010.0,102000.0,0.73022748]
[1737633996263,2.5e-07,102010.0,102000.0,0.75971248]
[1737633997344,2.5e-07,102010.0,102000.0,0.73479805]
[1737633997772,2.5e-07,102010.0,102000.0,0.75971248]
[1737633997985,2.5e-07,102010.0,102000.0,1.08581248]
[1737633998205,0.00029925,102040.0,102030.0,0.11801]
[1737633998423,0.00029925,102040.0,102030.0,0.37494485]
[1737633998633,0.00029925,102040.0,102030.0,0.52151848]
[1737633999257,2.5e-07,102040.0,102030.0,0.52151848]
[1737633999465,0.00050322,102040.0,102030.0,0.36049478]
[1737633999671,0.08340322,102040.0,102030.0,0.36049478]
[1737634002209,0.08340322,102040.0,102030.0,0.47131227]
[1737634002408,0.08340322,102040.0,102030.0,0.49660405]
[1737634002827,0.08340322,102040.0,102030.0,0.38578656]
[1737634003226,0.08340322,102040.0,102030.0,0.49660405]
[1737634003430,0.00050322,102040.0,102030.0,0.52151848]
[1737634003653,0.00050322,102040.0,102030.0,0.59731848]
[1737634003846,2.2e-07,102040.0,102030.0,0.66731848]
[1737634004019,2.2e-07,102040.0,102030.0,0.7407918]
[1737634004226,2.2e-07,102040.0,102030.0,1.2168918]
[1737634005873,2.2e-07,102040.0,102030.0,1.22650938]
[1737634006444,7.2e-07,102050.0,102040.0,0.361]
[1737634006647,7.2e-07,102050.0,102040.0,0.65162939]
[1737634006854,0.0001425,102060.0,102050.0,0.25180849]
[1737634007056,0.0001425,102060.0,102050.0,0.34915578]
[1737634007728,0.0807425,102060.0,102050.0,0.34915578]
[1737634008668,0.08089925,102070.0,102060.0,0.290981]
[1737634008880,0.00029925,102070.0,102060.0,0.60996327]
[1737634009092,1e-07,102080.0,102070.0,0.140971]
[1737634009304,0.0001424,102090.0,102080.0,0.270962]
[1737634009521,0.0001424,102090.0,102080.0,0.47912678]
[1737634009722,0.0001424,102090.0,102080.0,0.49912678]
[1737634010138,0.0794424,102090.0,102080.0,0.49912678]
[1737634010339,0.0794424,102090.0,102080.0,0.51044678]
[1737634010545,0.0794424,102090.0,102080.0,0.39967967]
[1737634010755,0.0794424,102090.0,102080.0,0.38835967]
[1737634010958,0.0794424,102090.0,102080.0,0.39967967]
[1737634011178,0.1286424,102090.0,102080.0,0.20667967]
[1737634011379,0.1286424,102090.0,102080.0,0.10933238]
[1737634011579,0.1286424,102090.0,102080.0,0.09801238]
[1737634012121,0.2265944,102090.0,102080.0,0.09801238]
[1737634012336,0.1286424,102090.0,102080.0,0.09801238]
[1737634013099,0.33741189,102090.0,102080.0,5.038e-05]
[1737634013302,0.53741189,102090.0,102080.0,5.038e-05]
[1737634013513,0.53741189,102090.0,102060.0,0.391912]
[1737634013514,0.1259,102070.0,102060.0,0.293932]
[1737634013714,0.1259,102070.0,102060.0,0.4113297]
[1737634016269,0.1259,102070.0,102060.0,0.3913297]
[1737634016529,0.1259,102070.0,102060.0,0.4026497]
[1737634016930,0.1259,102070.0,102060.0,0.3913297]
[1737634017481,0.1259,102070.0,102060.0,0.4113297]
[1737634017998,0.0766,102070.0,102060.0,0.4113297]
[1737634018175,0.0766,102070.0,102060.0,0.4013297]
[1737634020329,0.3238424,102090.0,102060.0,0.3263487]
[1737634020507,0.0759,102080.0,102070.0,0.32613578]
[1737634020710,0.0759,102080.0,102070.0,0.39124929]
[1737634021942,0.173862,102080.0,102070.0,0.316902]
[1737634022283,0.146462,102080.0,102060.0,0.28397641]
[1737634022488,0.0805,102070.0,102060.0,0.28397641]
[1737634022912,0.0805,102070.0,102060.0,0.30697641]
[1737634023128,0.0805,102070.0,102060.0,0.28397641]
[1737634023305,0.0805,102070.0,102060.0,0.09802541]
[1737634023306,0.227371,102070.0,102060.0,0.09802541]
[1737634023762,0.32011335,102070.0,102060.0,5.041e-05]
[1737634024593,0.2275132,102070.0,102060.0,0.09803141]
[1737634026797,0.2275132,102070.0,102060.0,5.041e-05]
[1737634027806,0.2275132,102070.0,102060.0,0.09803141]
[1737634028250,0.2275132,102070.0,102060.0,5.041e-05]
[1737634029453,0.2275132,102070.0,102060.0,0.09803141]
[1737634031347,0.1295422,102070.0,102060.0,0.09803141]
[1737634034899,0.1295422,102070.0,102060.0,0.09833003]
[1737634036291,0.1295422,102070.0,102060.0,0.12133003]
[1737634037985,0.0806422,102070.0,102060.0,0.23867732]
[1737634040333,0.0806422,102070.0,102060.0,0.21867732]
[1737634040666,0.1271422,102070.0,102060.0,0.12133003]
[1737634040885,0.1271422,102070.0,102060.0,0.09833003]
[1737634041430,0.1271422,102070.0,102060.0,0.12133003]
[1737634045823,0.0001422,102070.0,102060.0,0.21867732]
[1737634046033,0.0760422,102070.0,102060.0,0.12133003]
[1737634050632,0.0760422,102070.0,102060.0,0.09833003]
[1737634050841,0.2218132,102070.0,102060.0,0.00034903]
[1737634051042,0.2218132,102070.0,102060.0,0.09833003]
[1737634052493,0.1238422,102070.0,102060.0,0.09833003]
[1737634053679,0.2218132,102070.0,102060.0,0.09833003]
[1737634054779,0.1238422,102070.0,102060.0,0.09833003]
[1737634054933,0.2218132,102070.0,102060.0,0.09833003]
[1737634059190,0.2218132,102070.0,102060.0,0.00034903]
[1737634059925,0.2218132,102070.0,102060.0,0.09833003]
[1737634060126,0.2218132,102070.0,102060.0,0.00034903]
[1737634061061,0.42997798,102070.0,102060.0,0.00034903]
[1737634061440,0.31916049,102070.0,102060.0,0.00034903]
[1737634062424,0.31916049,102070.0,102060.0,0.09833003]
[1737634062641,0.2218132,102070.0,102060.0,0.09833003]
[1737634067944,0.2218132,102070.0,102060.0,0.00034903]
[1737634068349,0.33263069,102070.0,102060.0,0.00034903]
[1737634068856,0.2218132,102070.0,102060.0,0.00034903]
[1737634069457,0.2218132,102070.0,102060.0,0.09833003]
[1737634069683,0.2218132,102070.0,102060.0,0.00034903]
[1737634074645,0.72732527,102070.0,102060.0,0.00034903]
[1737634074858,0.67732527,102070.0,102060.0,0.00034903]
[1737634078493,1.00102527,102070.0,102060.0,0.00034903]
[1737634081976,1.11184276,102070.0,102060.0,0.00034903]
[1737634082172,2.39469986,102070.0,102060.0,0.00034903]
[1737634082373,2.10475605,102070.0,102060.0,0.00034903]
[1737634082618,2.02756605,102070.0,102060.0,0.00034903]
[1737634082961,2.12756605,102070.0,102060.0,0.00034903]
[1737634083360,2.18639605,102070.0,102060.0,0.00034903]
[1737634083575,1.01330605,102070.0,102060.0,0.00034903]
[1737634083808,2.25091305,102070.0,102060.0,0.00034903]
[1737634084216,0.48941749,102040.0,102030.0,0.00029862]
[1737634084458,0.67990583,102040.0,102030.0,0.00039731]
[1737634085721,0.3786,102040.0,102030.0,0.00039731]
[1737634085927,0.248,102040.0,102030.0,0.00039731]
[1737634086285,0.35881749,102040.0,102030.0,0.00039731]
[1737634086709,0.45616478,102040.0,102030.0,0.00039731]
[1737634091030,0.34534729,102040.0,102030.0,0.00039731]
[1737634091622,0.44269458,102040.0,102030.0,0.00039731]
[1737634091817,0.55351207,102040.0,102030.0,0.00039731]
[1737634092003,0.63481207,102040.0,102030.0,0.00039731]
[1737634093119,0.64437664,102040.0,102030.0,0.00039731]
[1737634093326,0.43621186,102040.0,102030.0,0.00039731]
[1737634094125,0.43621186,102040.0,102030.0,0.09840731]
[1737634094126,0.25756457,102040.0,102030.0,0.09840731]
[1737634095196,0.36838206,102040.0,102030.0,0.00039731]
[1737634096650,0.25756457,102040.0,102030.0,0.00039731]
[1737634097464,0.25756457,102040.0,102030.0,0.09840731]
[1737634097875,0.25756457,102040.0,102030.0,0.00039731]
[1737634098680,0.3237,102050.0,102040.0,0.0985]
[1737634098900,0.3237,102050.0,102040.0,0.46886346]
[1737634099130,0.3237,102050.0,102040.0,0.441989]
[1737634099336,0.421691,102050.0,102040.0,0.418989]
[1737634099564,0.421691,102050.0,102040.0,0.343489]
[1737634101098,0.72849549,102050.0,102030.0,0.61111531]
[1737634101301,0.617678,102050.0,102040.0,0.098]
[1737634101543,0.64830926,102050.0,102040.0,0.098]
[1737634101972,0.617678,102050.0,102040.0,0.098]
[1737634102955,0.813676,102050.0,102030.0,0.61111831]
[1737634103177,0.098,102040.0,102030.0,0.33960731]
[1737634103428,0.4217,102040.0,102030.0,0.00039731]
[1737634103655,0.53251749,102040.0,102030.0,0.00039731]
[1737634103854,0.4217,102040.0,102030.0,0.00039731]
[1737634107739,0.4217,102040.0,102030.0,0.09840731]
[1737634108084,0.098,102040.0,102030.0,0.09840731]
[1737634108279,0.20558664,102050.0,102030.0,0.1125396]
[1737634108491,0.30358164,102050.0,102040.0,0.098]
[1737634115557,0.49957264,102050.0,102030.0,0.75862431]
[1737634115783,0.30358164,102050.0,102040.0,0.098]
[1737634116711,0.49956464,102050.0,102030.0,0.56261331]
[1737634116928,0.34194589,102050.0,102040.0,0.098]
[1737634118420,0.30357764,102050.0,102040.0,0.098]
[1737634118963,0.00959964,102050.0,102040.0,0.098]
[1737634119174,0.097991,102050.0,102040.0,0.098]
[1737634122625,0.293978,102050.0,102030.0,0.83622531]
[1737634122829,0.293978,102050.0,102040.0,0.098]
[1737634123276,0.097991,102050.0,102040.0,0.098]
[1737634125830,0.421691,102050.0,102040.0,0.09829925]
[1737634127574,0.77741345,102060.0,102040.0,0.48962354]
[1737634127754,0.58145045,102060.0,102050.0,0.097991]
[1737634128562,0.5718275,102060.0,102050.0,0.097991]
[1737634129346,0.5718275,102060.0,102040.0,0.76771154]
[1737634129586,0.0001425,102060.0,102050.0,0.32223829]
[1737634129790,0.0022422,102070.0,102060.0,0.267881]
[1737634129991,0.0022422,102070.0,102060.0,0.47604578]
[1737634130201,0.0022422,102070.0,102060.0,0.62604578]
[1737634130415,0.0022422,102070.0,102060.0,0.73686327]
[1737634130658,2e-07,102070.0,102060.0,0.78686327]
[1737634130864,2e-07,102070.0,102060.0,0.62604578]
[1737634131077,2e-07,102070.0,102060.0,0.63732578]
[1737634131276,2e-07,102070.0,102060.0,0.52650829]
[1737634131492,2e-07,102070.0,102060.0,0.63732578]
[1737634132182,2e-07,102070.0,102060.0,0.62604578]
[1737634132395,2e-07,102070.0,102060.0,0.74814327]
[1737634132597,2e-07,102070.0,102060.0,0.63732578]
[1737634133181,2e-07,102070.0,102060.0,0.62604578]
[1737634133388,2e-07,102070.0,102060.0,0.24122829]
[1737634133598,2e-07,102070.0,102060.0,0.19532829]
[1737634133804,2e-07,102070.0,102060.0,0.21832829]
[1737634134005,2e-07,102070.0,102060.0,0.39754578]
[1737634134206,2e-07,102070.0,102060.0,0.54754578]
[1737634134616,2e-07,102070.0,102060.0,0.66964327]
[1737634134778,2e-07,102070.0,102060.0,0.63982578]
[1737634135406,2e-07,102070.0,102060.0,0.62854578]
[1737634135643,2e-07,102070.0,102060.0,0.52900829]
[1737634135877,2e-07,102070.0,102060.0,0.63982578]
[1737634136323,2e-07,102070.0,102060.0,0.61982578]
[1737634136548,2e-07,102070.0,102060.0,0.50900829]
[1737634136980,2e-07,102070.0,102060.0,0.52900829]
[1737634137180,2e-07,102070.0,102060.0,0.50900829]
[1737634138227,0.0001427,102070.0,102060.0,0.50900829]
[1737634140989,0.0001427,102070.0,102060.0,0.35900829]
[1737634141301,0.0001427,102070.0,102060.0,0.26672829]
[1737634143514,0.11096019,102070.0,102060.0,0.21832829]
[1737634143717,0.0001427,102070.0,102060.0,0.21832829]
[1737634144237,0.0001427,102070.0,102060.0,0.120981]
[1737634148722,0.0981137,102070.0,102060.0,0.120981]
[1737634149095,0.0001427,102070.0,102060.0,0.120981]
[1737634150387,0.0001427,102070.0,102060.0,0.12128004]
[1737634154141,0.0001427,102070.0,102060.0,0.26452733]
[1737634155180,0.0001427,102070.0,102060.0,0.28452733]
[1737634155392,0.0001427,102070.0,102060.0,0.36312733]
[1737634158447,0.0001427,102070.0,102060.0,0.37285534]
[1737634160448,0.0001427,102070.0,102060.0,0.21862733]
[1737634160662,0.11096019,102070.0,102060.0,0.19562733]
[1737634160861,0.0001427,102070.0,102060.0,0.21862733]
[1737634165438,0.0001427,102070.0,102060.0,0.09828004]
[1737634165439,0.0981137,102070.0,102060.0,0.09828004]
[1737634165965,0.0001427,102070.0,102060.0,0.09828004]
[1737634166373,0.0001427,102070.0,102060.0,0.12128004]
[1737634166616,0.0001427,102070.0,102060.0,0.21862733]
[1737634173203,0.0001427,102070.0,102060.0,0.22990733]
[1737634173772,0.0001427,102070.0,102060.0,0.23942895]
[1737634173994,0.0001427,102070.0,102060.0,0.32172895]
[1737634176549,0.0001427,102070.0,102060.0,0.34172895]
[1737634182620,0.0001427,102070.0,102060.0,0.36176706]
[1737634183759,0.0001427,102070.0,102060.0,0.34172895]
[1737634185568,0.0001427,102070.0,102060.0,0.42977193]
[1737634186865,0.0001427,102070.0,102060.0,0.34747193]
[1737634187071,0.0772427,102070.0,102060.0,0.30667031]
[1737634187284,0.0772427,102070.0,102060.0,0.31795031]
[1737634188954,0.0772427,102070.0,102060.0,0.18632302]
[1737634193063,0.0772427,102070.0,102060.0,0.09828004]
[1737634193909,0.0772427,102070.0,102060.0,0.21862733]
[1737634195274,0.0001427,102070.0,102060.0,0.21862733]
[1737634205994,0.0001427,102070.0,102060.0,0.23862733]
[1737634206221,0.0001427,102070.0,102060.0,0.21862733]
[1737634207267,0.0828427,102070.0,102060.0,0.21862733]
[1737634211928,0.0001427,102070.0,102060.0,0.23862733]
[1737634212172,0.0001427,102070.0,102060.0,0.36172733]
[1737634220123,0.0001427,102070.0,102060.0,0.38086635]
[1737634221184,0.0001427,102070.0,102060.0,0.45343776]
[1737634221420,0.0001427,102070.0,102060.0,0.60343776]
[1737634221613,0.0001427,102070.0,102060.0,0.63401089]
[1737634223712,0.0001427,102070.0,102060.0,0.67199797]
[1737634227429,0.0001427,102070.0,102060.0,0.67199797]
[1737634228883,0.0001427,102070.0,102060.0,0.75993811]
[1737634231398,0.0001427,102070.0,102060.0,0.72936498]
[1737634234200,0.0001427,102070.0,102060.0,0.75986574]
[1737634234398,0.0001427,102070.0,102060.0,0.72936498]
[1737634236344,0.0001427,102070.0,102060.0,0.75986124]
[1737634236756,0.0001427,102070.0,102060.0,0.72936498]
[1737634238535,0.0001427,102070.0,102060.0,0.54150649]
[1737634238740,0.0001427,102070.0,102060.0,0.50694649]
[1737634238947,0.0001427,102070.0,102060.0,0.47270649]
[1737634239152,0.0001427,102070.0,102060.0,0.44480747]
[1737634239372,0.0784427,102070.0,102060.0,0.44480747]
[1737634239574,0.0784427,102070.0,102060.0,0.29480747]
[1737634239776,0.0784427,102070.0,102060.0,0.28356747]
[1737634239980,0.0784427,102070.0,102060.0,0.29480747]
[1737634240186,0.0784427,102070.0,102060.0,0.31780747]
[1737634240808,0.0784427,102070.0,102060.0,0.30656747]
[1737634241009,0.18900119,102070.0,102060.0,0.28356747]
[1737634241307,0.33687219,102070.0,102060.0,0.08823918]
[1737634241716,0.33687219,102070.0,102060.0,0.01013918]
[1737634241717,1.01847797,102070.0,102060.0,0.01013918]
[1737634241855,0.228291,102050.0,102040.0,0.00029925]
[1737634242059,0.40587409,102050.0,102040.0,0.00029925]
[1737634242736,0.24085849,102050.0,102040.0,0.00029925]
[1737634242941,0.1303,102050.0,102040.0,0.09829925]
[1737634243101,0.0832,102050.0,102040.0,0.21864654]
[1737634245208,0.0804,102060.0,102050.0,0.293961]
[1737634246985,0.178381,102060.0,102050.0,0.293961]
[1737634247148,0.0804,102060.0,102050.0,0.293961]
[1737634247676,0.178381,102060.0,102050.0,0.293961]
[1737634248755,0.28893949,102060.0,102050.0,0.293961]
[1737634249882,0.28893949,102060.0,102050.0,0.097985]
[1737634250113,0.68087549,102060.0,102040.0,0.61062554]
[1737634250514,1.00457549,102060.0,102040.0,0.61062554]
[1737634250720,1.00457549,102060.0,102040.0,0.80662554]
[1737634251692,1.00457549,102060.0,102040.0,0.49027025]
[1737634252633,1.10256949,102060.0,102040.0,0.09829425]
[1737634252840,0.20854949,102050.0,102040.0,0.09829425]
[1737634253652,0.11055849,102050.0,102040.0,0.09829425]
[1737634253853,1.00458249,102060.0,102040.0,0.49028825]
[1737634254313,1.00458249,102060.0,102040.0,0.29428725]
[1737634254488,1.00472499,102060.0,102040.0,0.29428725]
[1737634255209,1.00472499,102060.0,102040.0,0.49028825]
[1737634255349,0.11055849,102050.0,102040.0,0.29428725]
[1737634256216,0.20854949,102050.0,102040.0,0.09829425]
[1737634256426,0.33624949,102050.0,102040.0,0.00029925]
[1737634256625,0.48624949,102050.0,102040.0,0.00029925]
[1737634257064,0.74415527,102050.0,102040.0,0.00029925]
[1737634257269,0.80561407,102050.0,102040.0,0.00029925]
[1737634258577,0.91617256,102050.0,102040.0,0.00029925]
[1737634258778,0.098,102040.0,102030.0,0.00039731]
[1737634258935,0.54436427,102040.0,102030.0,0.00039731]
[1737634259132,0.64171156,102040.0,102030.0,0.00039731]
[1737634259498,0.93826556,102040.0,102030.0,0.00039731]
[1737634259913,1.08826556,102040.0,102030.0,0.00039731]
[1737634261161,0.94379456,102040.0,102030.0,0.00039731]
[1737634261716,0.3237,101990.0,101980.0,0.38185151]
[1737634261844,0.59408889,101990.0,101980.0,0.18624448]
[1737634262047,0.59408889,101990.0,101980.0,0.08819148]
[1737634262673,0.53230649,101990.0,101980.0,0.00050297]
[1737634263677,0.75920649,101990.0,101980.0,0.00050297]
[1737634263878,0.80920649,101990.0,101980.0,0.00050297]
[1737634264280,0.53470649,101990.0,101980.0,0.00050297]
[1737634264484,0.63205378,101990.0,101980.0,0.00050297]
[1737634264691,0.72940107,101990.0,101980.0,0.00050297]
[1737634264910,0.75320306,101990.0,101980.0,0.00050297]
[1737634265561,0.75320306,101990.0,101980.0,0.00080222]
[1737634265735,0.72940107,101990.0,101980.0,0.00080222]
[1737634266143,0.67940107,101990.0,101980.0,0.00080222]
[1737634266323,0.75320306,101990.0,101980.0,0.00080222]
[1737634267592,0.70320306,101990.0,101980.0,0.00080222]
[1737634267803,0.75320306,101990.0,101980.0,0.00080222]
[1737634268441,0.76294405,101990.0,101980.0,0.00080222]
[1737634269858,0.82350254,101990.0,101980.0,0.00080222]
[1737634270052,0.39305999,101980.0,101970.0,0.00229883]
[1737634270364,1.76328649,101980.0,101970.0,0.00229883]
[1737634270575,1.75021849,101980.0,101970.0,0.00229883]
[1737634270933,1.54293249,101980.0,101970.0,0.00229883]
[1737634271136,1.53023249,101980.0,101970.0,0.00229883]
[1737634271374,1.47519949,101980.0,101970.0,0.00229883]
[1737634271718,1.49819949,101980.0,101970.0,0.00229883]
[1737634273464,1.49919949,101980.0,101970.0,0.00229883]
[1737634274006,1.52300148,101980.0,101970.0,0.00229883]
[1737634275095,1.67905559,101980.0,101970.0,0.00229883]
[1737634275627,1.70275819,101980.0,101970.0,0.00229883]
[1737634278310,0.95310219,101980.0,101970.0,0.00229883]
[1737634278518,2.92626219,101980.0,101970.0,0.00229883]
[1737634279100,2.8024602,101980.0,101970.0,0.00229883]
[1737634279447,1.4234946,101980.0,101970.0,0.00229883]
[1737634279828,0.421796,101940.0,101930.0,0.17539974]
[1737634280999,0.62970178,101940.0,101930.0,0.0791]
[1737634281170,0.62970178,101940.0,101930.0,9.891e-05]
[1737634283286,0.30600178,101940.0,101930.0,9.891e-05]
[1737634285414,0.19544329,101940.0,101930.0,9.891e-05]
[1737634285820,0.098096,101940.0,101930.0,9.891e-05]
[1737634285996,0.60101049,101950.0,101930.0,0.29441191]
[1737634286203,0.60101049,101950.0,101930.0,0.49061591]
[1737634286204,0.69835778,101950.0,101930.0,0.49061591]
[1737634286525,0.89454378,101950.0,101930.0,0.49061591]
[1737634286741,0.69835778,101950.0,101930.0,0.49061591]
[1737634286952,0.01819453,101940.0,101930.0,0.29440891]
[1737634287160,0.11629053,101940.0,101930.0,0.42430891]
[1737634287371,0.22684902,101940.0,101930.0,0.42430891]
[1737634287598,0.11629053,101940.0,101930.0,0.42430891]
[1737634288338,0.098096,101940.0,101930.0,0.42430891]
[1737634288516,0.20865449,101940.0,101930.0,0.42430891]
[1737634288713,0.098096,101940.0,101930.0,0.42445151]
[1737634289245,0.17781695,101940.0,101930.0,0.42445151]
[1737634290657,0.40194103,101960.0,101940.0,0.0789]
[1737634290859,0.20864549,101950.0,101940.0,0.0789]
[1737634291292,0.098096,101940.0,101930.0,0.42244251]
[1737634292083,0.20865449,101940.0,101930.0,0.12814151]
[1737634292324,0.40865449,101940.0,101930.0,0.00024151]
[1737634292530,0.71390756,101940.0,101930.0,0.00024151]
[1737634293149,0.79010756,101940.0,101930.0,0.00024151]
[1737634293359,1.35349356,101940.0,101930.0,0.00024151]
[1737634295479,1.35449356,101940.0,101930.0,0.00024151]
[1737634296088,1.45449356,101940.0,101930.0,0.00024151]
[1737634296814,1.78322693,101940.0,101930.0,0.00024151]
[1737634297034,1.78322693,101940.0,101930.0,5.1e-07]
[1737634297332,1.52944793,101940.0,101930.0,5.1e-07]
[1737634298439,1.42624793,101940.0,101930.0,5.1e-07]
[1737634298878,1.34966096,101940.0,101930.0,5.1e-07]
[1737634299934,1.35766096,101940.0,101930.0,5.1e-07]
[1737634300340,2.791048,101930.0,101920.0,0.00025913]
[1737634300521,3.26773709,101930.0,101920.0,0.00035837]
[1737634300944,0.326525,101910.0,101900.0,0.00029925]
[1737634301144,1.39193027,101910.0,101900.0,0.00045025]
[1737634301498,1.28107127,101910.0,101900.0,0.00045025]
[1737634302028,0.098154,101880.0,101870.0,0.2103172]
[1737634302307,0.55501349,101890.0,101880.0,0.000151]
[1737634302434,0.63514374,101890.0,101880.0,0.000151]
[1737634303430,0.73249103,101890.0,101880.0,0.000151]
[1737634304857,0.89304952,101890.0,101880.0,0.000151]
[1737634305061,0.73249103,101890.0,101880.0,0.000151]
[1737634305269,1.03249103,101890.0,101880.0,0.000151]
[1737634306705,1.11099103,101890.0,101880.0,0.000151]
[1737634307500,1.12077295,101890.0,101880.0,0.000151]
[1737634311059,1.14754268,101890.0,101880.0,0.000151]
[1737634311606,1.54426579,101890.0,101880.0,0.000151]
[1737634312353,1.4337073,101890.0,101880.0,0.000151]
[1737634312753,1.4337073,101890.0,101880.0,0.0002936]
[1737634312754,1.50326579,101890.0,101880.0,0.0002936]
[1737634313871,0.35872249,101870.0,101860.0,0.00029883]
[1737634314076,0.51110804,101870.0,101860.0,0.00080072]
[1737634314280,0.5643384,101870.0,101860.0,0.00080072]
[1737634316274,0.58547777,101870.0,101860.0,0.00080072]
[1737634316493,0.6119384,101870.0,101860.0,0.00080072]
[1737634318492,0.51110804,101870.0,101860.0,0.07840072]
[1737634318696,0.53123195,101870.0,101860.0,0.00080072]
[1737634318897,0.5411578,101870.0,101860.0,0.00080072]
[1737634319214,0.56792753,101870.0,101860.0,0.00080072]
[1737634319425,0.59438816,101870.0,101860.0,0.00080072]
[1737634320233,0.5411578,101870.0,101860.0,0.00080072]
[1737634320532,0.56792753,101870.0,101860.0,0.00080072]
[1737634320679,0.59438816,101870.0,101860.0,0.00080072]
[1737634324627,0.2604754,101870.0,101860.0,0.12390072]
[1737634325089,0.4104754,101870.0,101860.0,0.12390072]
[1737634325309,0.31312811,101870.0,101860.0,0.22207372]
[1737634325517,0.25808985,101870.0,101860.0,0.22207372]
[1737634325726,0.25808985,101870.0,101860.0,0.12390072]
[1737634326867,0.46599563,101870.0,101860.0,0.12390072]
[1737634328062,0.46599563,101870.0,101860.0,0.07690072]
[1737634328271,0.56334292,101870.0,101860.0,0.07690072]
[1737634330327,0.45278443,101870.0,101860.0,0.07690072]
[1737634330526,0.25808985,101870.0,101860.0,0.17507372]
[1737634330946,0.3237,101870.0,101860.0,0.22087372]
[1737634331902,0.421864,101870.0,101860.0,0.22087372]
[1737634332509,0.3237,101870.0,101860.0,0.22087372]
[1737634332821,0.421864,101870.0,101860.0,0.22087372]
[1737634333155,0.3237,101870.0,101860.0,0.22087372]
[1737634333362,0.421864,101870.0,101860.0,0.22087372]
[1737634333785,0.3237,101870.0,101860.0,0.22087372]
[1737634335806,0.34108742,101870.0,101860.0,0.22087372]
[1737634337200,0.43925142,101870.0,101860.0,0.12270072]
[1737634342835,0.098164,101870.0,101860.0,0.22087372]
[1737634343833,0.098164,101870.0,101860.0,0.12270072]
[1737634344206,0.098164,101870.0,101860.0,0.22087372]
[1737634344609,0.49109968,101880.0,101860.0,0.51537772]
[1737634344820,0.09845968,101880.0,101870.0,0.179264]
[1737634345093,0.0909392,101880.0,101870.0,0.179264]
[1737634345459,0.00029968,101880.0,101870.0,0.179264]
[1737634345865,0.09845368,101880.0,101870.0,0.179264]
[1737634351969,0.09845368,101880.0,101870.0,0.0811]
[1737634358623,0.09845368,101880.0,101870.0,0.0812424]
[1737634359689,0.09845368,101880.0,101870.0,0.0001424]
[1737634359906,0.79166524,101880.0,101870.0,0.0001424]
[1737634360221,1.09166524,101880.0,101870.0,0.0001424]
[1737634360744,0.98110675,101880.0,101870.0,0.0001424]
[1737634364149,0.93110675,101880.0,101870.0,0.0001424]
[1737634364309,0.98110675,101880.0,101870.0,0.0001424]
[1737634366689,1.09166524,101880.0,101870.0,0.0001424]
[1737634366831,0.98110675,101880.0,101870.0,0.0001424]
[1737634368104,1.00095202,101880.0,101870.0,0.0001424]
[1737634368811,0.95095202,101880.0,101870.0,0.0001424]
[1737634368989,1.00095202,101880.0,101870.0,0.0001424]
[1737634372098,0.95095202,101880.0,101870.0,0.0001424]
[1737634372795,1.00095202,101880.0,101870.0,0.0001424]
[1737634373001,0.85279802,101880.0,101860.0,0.00021187]
[1737634373207,0.30606978,101870.0,101860.0,0.00021187]
[1737634373341,0.40341707,101870.0,101860.0,0.00021187]
[1737634374358,0.19551129,101870.0,101860.0,0.09838487]
[1737634374566,0.098164,101870.0,101860.0,0.22198487]
[1737634375161,0.098164,101870.0,101860.0,0.12381187]
[1737634375658,0.098164,101870.0,101860.0,0.22198487]
[1737634377198,0.098164,101870.0,101860.0,0.12381187]
[1737634377396,0.17994714,101870.0,101860.0,0.22198487]
[1737634377601,0.17994714,101870.0,101860.0,0.00021187]
[1737634378812,0.18968346,101870.0,101860.0,0.00021187]
[1737634381833,0.18968346,101870.0,101860.0,0.00035427]
[1737634382783,0.18968346,101870.0,101860.0,0.09852727]
[1737634383573,0.18968346,101870.0,101860.0,0.00035427]
[1737634385112,0.47428924,101870.0,101860.0,0.00035427]
[1737634385681,0.62428924,101870.0,101860.0,0.00035427]
[1737634386053,0.71998924,101870.0,101860.0,0.00035427]
[1737634387576,1.01998924,101870.0,101860.0,0.00035427]
[1737634392504,1.04675897,101870.0,101860.0,0.00035427]
[1737634392714,1.35864946,101870.0,101860.0,0.00035427]
[1737634393906,1.24809097,101870.0,101860.0,0.00035427]
[1737634394239,1.27485085,101870.0,101860.0,0.00035427]
[1737634394454,1.22162049,101870.0,101860.0,0.00035427]
[1737634394633,1.24939022,101870.0,101860.0,0.00035427]
[1737634394840,1.00834022,101870.0,101860.0,0.00035427]
[1737634395039,1.03134022,101870.0,101860.0,0.00035427]
[1737634395263,1.14189871,101870.0,101860.0,0.00035427]
[1737634395476,1.03134022,101870.0,101860.0,0.00035427]
[1737634397270,1.00457049,101870.0,101860.0,0.00035427]
[1737634398198,0.76808998,101860.0,101850.0,0.00035925]
[1737634398439,1.61577456,101860.0,101850.0,0.00035925]
[1737634398648,1.51992456,101860.0,101850.0,0.00035925]
[1737634399208,0.430843,101840.0,101830.0,0.00029904]
[1737634399415,0.473161,101810.0,101790.0,0.10302911]
[1737634399614,0.41669527,101800.0,101790.0,0.10302911]
[1737634399815,0.30613678,101800.0,101790.0,0.10302911]
[1737634400232,0.61669527,101800.0,101790.0,0.10302911]
[1737634400440,0.75269527,101800.0,101790.0,0.10302911]
[1737634400794,1.32747886,101800.0,101790.0,0.0153406]
[1737634400969,1.42482615,101800.0,101790.0,0.0153406]
[1737634401218,1.05112615,101800.0,101790.0,6e-07]
[1737634401420,0.85031415,101800.0,101790.0,6e-07]
[1737634401835,0.82354442,101800.0,101790.0,6e-07]
[1737634402551,0.84302771,101800.0,101790.0,6e-07]
[1737634403915,0.85275085,101800.0,101790.0,6e-07]
[1737634404147,0.92815085,101800.0,101790.0,6e-07]
[1737634404356,0.96825085,101800.0,101790.0,6e-07]
[1737634404766,1.15769236,101800.0,101790.0,6e-07]